Cogmind - Beta 13 @@@ ROGUE MODE // 2024.05.09 @ 00:48:18 Player: Olafz Result: Destroyed by G-47 Trooper with Particle Gun Performance ------------- Evolutions (2) 1000 Regions Visited (4) 800 Robots Destroyed (50) 250 Value Destroyed (927) 927 Prototype IDs (2) 40 Alien Tech Used (0) 0 Bonus (11) 11 TOTAL SCORE: 3028 Bonus ------- High Alert Combat Kills 11 Cogmind --------- Core Integrity 0/550 Matter 250/300 Energy 39/100 System Corruption 0% Temperature Cool (9) Movement Core (500) Ox9 Location -8/Materials Parts ------- > --- POWER (1) -------- (None) > --- PROPULSION (2) --- VSS Leg > --- UTILITY (6) ------ Large Storage Unit Improved Weapon Shielding > --- WEAPON (2) ------- Beam Rifle Beam Cannon > --- INVENTORY (15) --- Large Storage Unit High-capacity Storage Unit ECM Suite Hacking Suite High-powered Tractor Beam Peak State ------------ > --- POWER ------------ Light Nuclear Core > --- PROPULSION ------- VSS Leg VSS Leg > --- UTILITY ---------- Improved Heat Sink Improved Heat Sink Large Storage Unit Structural Scanner > --- WEAPON ----------- Beam Rifle Light Assault Rifle > --- INVENTORY -------- Light Treads Light Treads Large Storage Unit High-capacity Storage Unit ECM Suite Hacking Suite High-powered Tractor Beam Beam Rifle Beam Rifle Beam Cannon Grenade Launcher [Rating: 21] Favorites ----------- Power Light Ion Engine Engine Light Ion Engine Power Core Light Nuclear Core Propulsion Light Treads Treads Light Treads Leg Aluminum Leg Utility Large Storage Unit Device Improved Heat Sink Storage Large Storage Unit Protection Improved Weapon Shielding Weapon Light Assault Rifle Energy Gun Particle Gun Energy Cannon Beam Cannon Ballistic Gun Light Assault Rifle Launcher Grenade Launcher Build | -11 -10 -10 -9 -8 ------- Run | Yrd Mat Min Mat Mat Slots Evolved 4 | . . . 2 2 Power . | . . . . . Propulsion . | . . . . . Utility 4 | . . . 2 2 Weapon . | . . . . . Parts Attached 44 | . 7 1 15 21 Power 9 | . 1 . 4 4 Engine 6 | . 1 . 4 1 Core 3 | . . . . 3 Reactor . | . . . . . Propulsion 14 | . 3 . 3 8 Treads 10 | . 2 . 3 5 Leg 4 | . 1 . . 3 Wheel . | . . . . . Hover . | . . . . . Flight . | . . . . . Utility 8 | . 1 . 4 3 Device 5 | . . . 4 1 Storage 1 | . 1 . . . Processor . | . . . . . Hackware . | . . . . . Protection 2 | . . . . 2 Artifact . | . . . . . Weapon 13 | . 2 1 4 6 Energy Gun 7 | . 1 . 3 3 Energy Cannon 1 | . . . . 1 Ballistic Gun 3 | . 1 1 1 . Ballistic Cannon . | . . . . . Launcher 2 | . . . . 2 Special Weapon . | . . . . . Impact Weapon . | . . . . . Slashing Weapon . | . . . . . Piercing Weapon . | . . . . . Special Melee Weapon . | . . . . . Unidentified Prototypes . | . . . . . Parts Lost 24 | . 1 . 2 21 Power 5 | . . . 1 4 Propulsion 7 | . . . . 7 Utility 5 | . . . . 5 Weapon 7 | . 1 . 1 5 Highest Loss Streak 13 | . 1 . 1 13 To Critical Strikes 1 | . . . . 1 Average Slot Usage (%) 90 | . 95 100 89 68 Engine 10 | . 12 14 11 2 Treads 13 | . 6 28 22 8 Leg 11 | . 21 . . 8 Device 8 | . . . 20 20 Storage 20 | . 25 28 14 9 Energy Gun 13 | . 15 14 11 8 Ballistic Gun 10 | . 12 14 10 5 Naked Turns . | . . . . . Heaviest Build 34 | 12 32 32 34 34 Greatest Support 40 | 20 40 40 40 40 Greatest Overweight (x) 10 | . 1 . . 10 Average Overweight (x) . | . . . . . Largest Inventory Capacity 15 | . 15 15 15 15 Average Capacity 14 | . 13 15 15 15 Most Carried 15 | . 15 15 15 15 Average Carried 11 | . 10 14 14 10 Final Capacity 15 | 8 15 15 15 15 Final Carried 15 | 6 14 15 15 5 Class Distribution -------------------- 70% | Mutant 29% | Scavenger-Mutant Dominant Class ---------------- Mutant | -10/Materials Mutant | -10/Mines Scavenger-Mutant | -9/Materials Scavenger-Mutant | -8/Materials Resources | -11 -10 -10 -9 -8 ----------- Run | Yrd Mat Min Mat Mat Matter Collected 698 | 198 105 23 121 251 Remotely . | . . . . . Salvage Created 1333 | . 300 44 368 621 Parts 102 | . 24 3 26 49 Haulers Intercepted 3 | . 1 . . 2 Recyclers Shooed 4 | . . . 2 2 Parts Field Recycled . | . . . . . Retrieved Matter . | . . . . . Parts Self-Destructed . | . . . . . Prevented . | . . . . . Kills | -11 -10 -10 -9 -8 ------- Run | Yrd Mat Min Mat Mat Combat Hostiles Destroyed 33 | . 6 3 9 15 Guns 26 | . 6 3 9 8 AOE 7 | . . . . 7 Classes Destroyed 9 | . 5 . 2 2 Worker 3 | . . . 2 1 Builder 4 | . . . . 4 Hauler 3 | . 1 . . 2 Recycler 2 | . . . . 2 Operator 1 | . 1 . . . Watcher 4 | . 2 . 1 1 Swarmer 19 | . 3 3 3 10 Grunt 11 | . 3 . 4 4 Sentry 3 | . . . 2 1 Best Kill Streak 15 | . 4 3 6 15 Combat Bots Only 8 | . 3 3 3 8 Max Kills in Single Turn 6 | . 2 1 1 6 Gunslinging 1 | . 1 . . 1 Exploded 4 | . . . . 4 Melee . | . . . . . Uniques/NPCs Destroyed . | . . . . . Combat | -11 -10 -10 -9 -8 -------- Run | Yrd Mat Min Mat Mat Hostile Shots Fired 451 | . 35 21 73 322 Missed 135 | . 15 5 13 102 Damage Taken 3664 | . 270 127 720 2547 Core 702 | . 7 13 129 553 Absorbed by Shields . | . . . . . Redirected to Shielding 148 | . . . . 148 Core Remaining (%) 86 | 100 . 92 67 . Volleys Fired 128 | . 34 7 38 49 Largest 2 | . 2 2 2 2 Hottest 116 | . 90 85 85 116 Shots Fired 239 | . 68 10 74 87 Gun 230 | . 68 10 74 78 Cannon 1 | . . . . 1 Launcher 8 | . . . . 8 Special . | . . . . . Kinetic 96 | . 24 7 37 28 Thermal 124 | . 33 3 37 51 Explosive 8 | . . . . 8 Electromagnetic 11 | . 11 . . . Robot Hit Streak 8 | . 7 3 8 8 Robot Miss Streak 5 | . 3 2 3 5 Penetration Max . | . . . . . Secondary Targets 5 | . 1 . 1 3 Max Gunslinging Chain 1 | . 1 . 1 1 Shots Hit Robots 143 | . 41 4 48 50 Core Hits 81 | . 17 4 20 40 Critical Kills . | . . . . . Critical Parts Destroyed 1 | . 1 . . . Critical Strikes 7 | . 4 . . 3 Burn 6 | . 3 . . 3 Destroy 1 | . 1 . . . Melee Attacks . | . . . . . Impact . | . . . . . Slashing . | . . . . . Piercing . | . . . . . Sneak Attacks . | . . . . . Combat Hostiles . | . . . . . Follow-up Attacks . | . . . . . Damage Inflicted 2293 | . 431 51 553 1258 Guns 1619 | . 431 51 553 584 Cannons 18 | . . . . 18 Explosions 656 | . . . . 656 Melee . | . . . . . Ramming . | . . . . . Kinetic 424 | . 93 6 179 146 Thermal 1129 | . 254 45 374 456 Explosive 656 | . . . . 656 Electromagnetic 84 | . 84 . . . Impact . | . . . . . Slashing . | . . . . . Piercing . | . . . . . Highest Corruption 3 | . 3 3 1 . Average Corruption 2 | . 2 3 1 . Corruption Purged . | . . . . . Corruption Blocked . | . . . . . Effects 18 | . 15 3 . . Message Errors 4 | . 3 1 . . Matter Fused 6 | . 5 1 . . Heat Flow Errors 4 | . 3 1 . . Energy Discharges 2 | . 2 . . . Data Loss (minor) 1 | . 1 . . . Misfires 1 | . 1 . . . Overload Shots . | . . . . . Overflow Damage . | . . . . . Projectiles . | . . . . . Explosions . | . . . . . Melee . | . . . . . Knockbacks . | . . . . . Impact . | . . . . . Kinetic . | . . . . . Secondary . | . . . . . Self-Inflicted Damage 61 | . . . . 61 Shots 3 | . . . . 3 Rammed 1 | . . 1 . . Targets Rammed 1 | . . 1 . . Kicked . | . . . . . Crushed . | . . . . . Highest Temperature 362 | . 267 362 294 54 Average Temperature 89 | . 77 197 111 17 Received Heat Transfer 957 | . 138 . 321 498 Effects 2 | . . . 2 . Interference 2 | . . . 2 . Siege Activations . | . . . . . Robots Corrupted . | . . . . . Combat Hostiles . | . . . . . Parts Fried . | . . . . . Impact Corruptions . | . . . . . Robots Melted . | . . . . . Combat Hostiles . | . . . . . Parts Melted 7 | . 3 . 2 2 Heat Transferred 3330 | . 925 111 925 1369 Parts Sabotaged . | . . . . . Parts Stolen . | . . . . . Parts Stripped . | . . . . . Power Chain Reactions . | . . . . . Alert | -11 -10 -10 -9 -8 ------- Run | Yrd Mat Min Mat Mat Peak Influence 434 | . 187 71 274 434 Initial 31 | . . 1 27 31 Average 104 | . 63 45 130 226 Maximum Alert Level 2 | . . . 1 2 Low Security (%) 82 | . 100 100 67 40 Level 1 15 | . . . 32 47 Level 2 1 | . . . . 11 Level 3 . | . . . . . Level 4 . | . . . . . Level 5 . | . . . . . High Security . | . . . . . Max Security . | . . . . . Squads Dispatched 5 | . . . . 5 Investigation . | . . . . . Extermination . | . . . . . Reinforcement 2 | . . . . 2 Assault . | . . . . . Garrison 3 | . . . . 3 Intercept . | . . . . . Searches Triggered . | . . . . . Construction Impeded 1 | . . . . 1 Haulers Reinforced . | . . . . . Active Scanning Responses . | . . . . . Cargo Convoy Interrupts . | . . . . . Stealth | -11 -10 -10 -9 -8 --------- Run | Yrd Mat Min Mat Mat Distress Signals 4 | . . . 1 3 Communications Jammed . | . . . . . Distress Signals . | . . . . . Times Spotted 49 | . 12 3 10 24 Peak Tracking Total 8 | . 3 3 4 8 Tactical Retreats . | . . . . . Traps | -11 -10 -10 -9 -8 ------- Run | Yrd Mat Min Mat Mat Traps Triggered 5 | . 4 . 1 . Indirectly . | . . . . . Trap Hack Attempts . | . . . . . Triggered . | . . . . . Disarmed . | . . . . . Reprogrammed . | . . . . . Reused . | . . . . . Traps Extracted . | . . . . . Installed . | . . . . . Triggered . | . . . . . Machines | -11 -10 -10 -9 -8 ---------- Run | Yrd Mat Min Mat Mat Machines Disabled 2 | . 1 . . 1 Max in Single Turn 1 | . 1 . . 1 Machines Repaired . | . . . . . Machines Dismantled . | . . . . . Machines Sabotaged . | . . . . . Overloaded Fab Kills . | . . . . . Hacking | -11 -10 -10 -9 -8 --------- Run | Yrd Mat Min Mat Mat Machines Accessed 4 | . 4 . . . Terminals 4 | . 4 . . . Fabricators . | . . . . . Repair Stations . | . . . . . Recycling Units . | . . . . . Scanalyzers . | . . . . . Garrison Access . | . . . . . Total Hacks 13 | . 13 . . . Successful 7 | . 7 . . . Failed 6 | . 6 . . . Catastrophic 3 | . 3 . . . Database Lockouts . | . . . . . Manual 4 | . 4 . . . Terminals 13 | . 13 . . . Fabricators . | . . . . . Repair Stations . | . . . . . Recycling Units . | . . . . . Scanalyzers . | . . . . . Garrison Access . | . . . . . Terminal Hacks 7 | . 7 . . . Record 3 | . 3 . . . Prototype ID Bank 1 | . 1 . . . Branch Access Points 1 | . 1 . . . Emergency Access Points 1 | . 1 . . . Alert Level 1 | . 1 . . . Fabricator Hacks . | . . . . . Repair Station Hacks . | . . . . . Recycling Unit Hacks . | . . . . . Scanalyzer . | . . . . . Garrison Access Hacks . | . . . . . Unauthorized Hacks . | . . . . . Terminals . | . . . . . Fabricators . | . . . . . Repair Stations . | . . . . . Recycling Units . | . . . . . Scanalyzers . | . . . . . Garrison Access . | . . . . . Data Cores Recovered 1 | . 1 . . . Used . | . . . . . Hacking Detections 2 | . 2 . . . Full Trace Events 1 | . 1 . . . Feedback Events . | . . . . . Feedback Blocked . | . . . . . Robot Schematics Acquired . | . . . . . Robots Built . | . . . . . Authchips . | . . . . . Time . | . . . . . Total Robot Build Rating . | . . . . . Part Schematics Acquired . | . . . . . Parts Built . | . . . . . Authchips . | . . . . . Time . | . . . . . Total Part Build Rating . | . . . . . Parts Repaired . | . . . . . Time . | . . . . . Parts Recycled . | . . . . . Recycled Matter . | . . . . . Retrieved Matter . | . . . . . Retrieved Components . | . . . . . Parts Scanalyzed . | . . . . . Part Schematics Acquired . | . . . . . Parts Damaged . | . . . . . Bothacking | -11 -10 -10 -9 -8 ------------ Run | Yrd Mat Min Mat Mat Used RIF Installer . | . . . . . Robots Hacked . | . . . . . Non-combat . | . . . . . Combat . | . . . . . Robot Hacks Applied . | . . . . . Relay Couplers Released . | . . . . . Fabnet Peak Effective % . | . . . . . Robots Rewired . | . . . . . Allies Hacked . | . . . . . Hacks Repelled . | . . . . . Allies | -11 -10 -10 -9 -8 -------- Run | Yrd Mat Min Mat Mat Total Allies . | . . . . . Largest Group . | . . . . . Highest-Rated Group . | . . . . . Highest-Rated Ally . | . . . . . Total Orders . | . . . . . Ally Attacks . | . . . . . Total Damage . | . . . . . Kills . | . . . . . Allies Corrupted . | . . . . . Allies Melted . | . . . . . Intel | -11 -10 -10 -9 -8 ------- Run | Yrd Mat Min Mat Mat Robot Analysis Total . | . . . . . Derelict Logs Recovered . | . . . . . Drone Launches . | . . . . . Drone Recoveries . | . . . . . Exploration | -11 -10 -10 -9 -8 ------------- Run | Yrd Mat Min Mat Mat Turns Passed 1748 | . 828 196 445 279 Spaces Moved 778 | 1 418 110 186 63 Core 2 | . . . . 2 Treads 431 | . 108 110 186 27 Legs 345 | 1 310 . . 34 Wheels . | . . . . . Hover . | . . . . . Flight . | . . . . . Fastest Speed 120 | 120 120 160 160 160 Average Speed 167 | 120 168 160 160 193 Slowest Speed 550 | 120 240 160 160 550 Overloaded Moves . | . . . . . Propulsion Burnouts . | . . . . . Robots Hopped . | . . . . . Cave-ins Triggered . | . . . . . Exploration Rate (%) 28 | 2 70 34 24 10 Regions Visited 4 Branch Regions 1 Pre-discovered Areas . | . . . . . Known Exits Taken 1 | . 1 . . . Unknown Exits Taken 3 | 1 . 1 1 . Scrap Searched . | . . . . . Spaces Dug . | . . . . . Terrain Destroyed 33 | . . . . 33 Melee . | . . . . . Projectile . | . . . . . AOE 33 | . . . . 33 Terrain Rammed . | . . . . . Walls Destroyed . | . . . . . Machines Disabled . | . . . . . Actions | -11 -10 -10 -9 -8 --------- Run | Yrd Mat Min Mat Mat Total 1009 | . 479 121 273 136 Wait 11 | . 1 1 8 1 Move 774 | . 417 109 185 63 Hop . | . . . . . Pick Up 23 | . 12 1 10 . Fast Attach 15 | . 5 . 4 6 Attach 16 | . 1 . 2 13 Detach 4 | . 2 . . 2 Swap 13 | . 1 1 9 2 Drop 24 | . 6 1 17 . Fire 128 | . 34 7 38 49 Melee . | . . . . . Ram . | . . . . . Kick . | . . . . . Crush 1 | . . 1 . . Escape Stasis . | . . . . . Rewire . | . . . . . Trap . | . . . . . Miscellaneous . | . . . . . Route ------- -11/Scrapyard -10/Materials (discovered 4 exits: [*Mat x3] / *Min) -10/Mines -9/Materials -8/Materials History --------- Turn | Location | Event 1 | -11/Scrapyard | Discovered new exit (range 0) 1 | -11/Scrapyard | Entered Materials 58 | -10/Materials | Discovered new exit (range 13) 236 | -10/Materials | Identified exit to Mines 315 | -10/Materials | Build established: Mutant 331 | -10/Materials | Discovered new exit (range 3) 488 | -10/Materials | Discovered new exit (range 15) 829 | -10/Materials | Entered Mines 885 | -10/Mines | Met a Derelict bent on vengeance 964 | -10/Mines | Discovered new exit (range 15) 1025 | -10/Mines | Entered Materials 1025 | -9/Materials | Evolved 2 slots: Utility x2 1408 | -9/Materials | Build established: Scavenger-Mutant 1432 | -9/Materials | Discovered new exit (range 16) 1470 | -9/Materials | Entered another Materials area 1470 | -8/Materials | Evolved 2 slots: Utility x2 1523 | -8/Materials | Garrison activated, responded to threat 1577 | -8/Materials | Lost 8 parts (2p3n2u1w) 1579 | -8/Materials | Destroyed 8 combat bots 1676 | -8/Materials | Core integrity fell below 50% 1705 | -8/Materials | Core integrity fell below 20% 1749 | -8/Materials | Destroyed by G-47 Trooper with Particle Gun Last Messages --------------- U-05 Engineer builds a Door. K-01 Serf collects debris. K-01 Serf destroyed. U-05 Engineer lays Concrete. Lgt. Treads destroyed. R-06 Scavenger collects Terrain Scan Processor. Critical hit (Burn: +37). Acquired VSS Leg. Penetrated by Slug. U-05 Engineer lays Concrete. R-06 Scavenger collects Wheel. U-05 Engineer lays Concrete. Beam Rifle destroyed. Acquired Imp. Weapon Shielding. Penetrated by Slug. Slug penetrates Hadron Collector. S-10 Pest suffers critical hit (Burn). S-10 Pest heat damages Flight Unit. Penetrated by Slug. Lgt. Treads destroyed. Map ----- +----------------------------------------------------+ | ???????????????????????????????????????????? | | ???????????????????????????????????????????? | | ???????????????????????????????????????????? | | ???????????????????????????????????????????? | | ???????????????????????????????????????????? | | ???????????????????????????????????????????? | | ???????????????????????????????????????????? | | ???????????????????????????????????????????? | | ???????????????????????????????????????????? | | ???????????????????????????????????????????? | | ????????????????????????#####??????????????? | | ????????????????????????#####??????????????? | | ?????????## ??????? # ##??????????? | | ?????????## ?? ??? # ##??????????? | | ?????????## # "?? # ##??????????? | | ??######### # ?? # """ """ ##??????????? | | ??######### # "?? # """ """ + ??????????? | | ? + %^+ ""? # """ """ ##??????????? | | # # *^# ""? # ##??????????? | | # #%*|#* # ## ?????????? | | # #[%[############+###### ?????????? | | + # ]= # ?????????? | | ??? = # %% # ?????????? | | # ?? ! ! [ # ?????????? | | # ? #| [ ""%=== ##### ?????????? | | # #########% " @ ######?????????? | | # ## ####||* = " ##?????????????? | | | ! %%* s ##?????????????? | | | ! ##?????????????? | | ! %= h ! g % ! ##?????????????? | | % ! ! ! ##?????????????? | | " + ";#* ##############?????????????? | | " " # ## #####?????????????? | | " " # ##?????????????????????????? | | " " # ##?????????????????????????? | | " " # ##?????????????????????????? | | " " # ##?????????????????????????? | | " " # ##?????????????????????????? | | " ##"""""### ##?????????????????????????? | | " ##### #### ##?????????????????????????? | | " ?##### ### #?????????????????????????? | | ?????## ??? ??????????????????????????? | | ???????## ??? ??????????????????????????? | | ???????## ??? ??????????????????????????? | | ???????## ?????????????????????????????????? | | ???????## ?????????????????????????????????? | | ???????????????????????????????????????????? | | ???????????????????????????????????????????? | | ???????????????????????????????????????????? | | ???????????????????????????????????????????? | +----------------------------------------------------+ Best States ------------- Heat Dissipation 59 Energy Generation 14 Energy Capacity 265 Matter Stores 300 Matter Capacity 300 Sight Range 16 Terrain Scan Density 10 Weapon Shielding 66 Evasion (%) 55 Recoil Reduction 2 Item Schematics ----------------- None Robot Schematics ------------------ None Fabricated ------------ Nothing Alien Tech Used ----------------- None Achievements -------------- None Challenges ------------ None Game ------ Seed FissionShadeWheel Manual? 0 Play Time 00:24:19 Cumulative 126.4 hours Start 2024.05.08 @ 23:48:18 End 2024.05.09 @ 00:48:18 Sessions 1 Manual Loads 0 Difficulty Rogue Special Mode None Game No. 215 Rogue 213 Adventurer 2 Explorer 0 Win Type - Total 4 Types 3/0/0/1/0/0/0/0/0 Lore% 59 Gallery% 61 Achievement% 47 Wizard Run 0 Options --------- Layout 0 ASCII 0 Keyboard 1 Movement Numpad Keybinds 1 Fullscreen 2 Font 18/SmallcapsGlow Map View 76x50 Zoom Use 0% Tactical HUD 1 Map Filters NONE Filters NONE Steam 1 RUN: 7525e856-e225-4db0-9aef-0bb147ccc5dc